lending/lending_fUSD_20240131
["ID","MTS","AMOUNT","RATE_DAILY","PERIOD"]
[313092562,1706736700719,-500.0,0.00047123,5]
[313092563,1706736700729,-567.51,0.00047123,5]
[313092564,1706736700897,-495.88277699,0.00047123,5]
[313092565,1706736700909,-1484.95,0.00047123,5]
[313092566,1706736700919,-500.0,0.00047123,5]
[313092567,1706736700928,-1619.55,0.00047123,5]
[313092568,1706736700938,-791.85,0.00047123,5]
[313092569,1706736700948,-604.26,0.00047123,5]
[313092570,1706736700958,-679.29,0.00047123,2]
[313092571,1706736700967,-862.32,0.00047123,5]
[313092572,1706736700977,-3247.43,0.00047123,5]
[313092573,1706736700987,-2628.35,0.00047123,5]
[313092574,1706736700996,-1000.23,0.00047123,5]
[313092575,1706736701006,-571.54324988,0.00047123,5]
[313092576,1706736701016,-500.0,0.00047123,5]
[313092577,1706736701025,-1155.57,0.00047123,5]
[313092578,1706736701034,-678.92,0.00047123,5]
[313092579,1706736701044,-1333.1,0.00047123,5]
[313092580,1706736701053,-1036.02,0.00047123,5]
[313092581,1706736701066,-509.62,0.00047123,5]
[313092582,1706736701075,-150.0,0.00047123,2]
[313092583,1706736701085,-150.0,0.00047123,2]
[313092584,1706736701094,-150.0,0.00047123,2]
[313092585,1706736701103,-150.0,0.00047123,2]
[313092586,1706736701113,-150.0,0.00047123,2]
[313092587,1706736701122,-150.0,0.00047123,2]
[313092588,1706736701131,-150.0,0.00047123,2]
[313092589,1706736701140,-150.0,0.00047123,2]
[313092590,1706736701149,-150.0,0.00047123,2]
[313092591,1706736701158,-150.0,0.00047123,2]
[313092592,1706736701167,-515.31378605,0.00047142,30]
[313092593,1706736701177,-1078.59396166,0.00047145,30]
[313092594,1706736701186,-156.5705687,0.00047153,30]
[313092595,1706736701196,-1035.8983042,0.00047156,30]
[313092596,1706736701206,-1500.65130064,0.00047163,30]
[313092597,1706736701215,-500.0,0.00047208,14]
[313092598,1706736701227,-150.36800339,0.00047239,30]
[313092599,1706736701238,-151.75508022,0.00047251,30]
[313092600,1706736701247,-333.33333333,0.00047255,30]
[313092601,1706736701256,-1035.8983042,0.00047255,30]
[313092602,1706736701266,-333.33333333,0.00047315,30]
[313092603,1706736701275,-175.00563788,0.00047315,30]
[313092604,1706736701285,-152.0,0.00047325,9]
[313092605,1706736701295,-515.31378605,0.00047329,30]
[313092606,1706736701304,-175.00563788,0.00047333,30]
[313092607,1706736701316,-175.00563788,0.00047357,30]
[313092608,1706736701326,-507.56892206,0.00047373,120]
[313092609,1706736701336,-1078.59396166,0.0004738,30]
[313092610,1706736701346,-175.00563788,0.00047385,30]
[313092611,1706736701355,-515.31378605,0.00047395,30]
[313092612,1706736701365,-175.00563788,0.00047433,30]
[313092613,1706736701374,-154.11129,0.0004744,5]
[313092614,1706736701384,-175.00563788,0.00047449,30]
[313092615,1706736701393,-166.66666666,0.00047452,30]
[313092616,1706736701401,-152.61839701,0.00047459,30]
[313092617,1706736701410,-150.36800339,0.00047471,30]
[313092618,1706736701420,-300.0,0.000475,44]
[313092619,1706736701429,-185.0,0.000475,2]
[313092620,1706736701438,-352.8,0.00047512,30]
[313092621,1706736701448,-1035.8983042,0.00047515,30]
[313092622,1706736701458,-783.56758742,0.00047549,30]
[313092623,1706736701467,-1035.8983042,0.00047556,30]
[313092624,1706736701478,-1123.03,0.00047572,15]
[313092625,1706736701487,-175.00563788,0.00047576,30]
[313092626,1706736701496,-1035.8983042,0.0004758,30]
[313092627,1706736701505,-150.0,0.00047585,2]
[313092628,1706736701514,-5082.96530198,0.000476,2]
[313092629,1706736701524,-951.0,0.000476,30]
[313092630,1706736701534,-333.33333333,0.00047616,30]
[313092631,1706736701544,-333.33333333,0.00047664,30]
[313092632,1706736701553,-1460.59,0.00047671,5]
[313092633,1706736701566,-553.49,0.00047671,5]
[313092634,1706736701576,-500.0,0.00047671,2]
[313092635,1706736701585,-625.93,0.00047671,5]
[313092636,1706736701596,-500.0,0.00047671,2]
[313092637,1706736701605,-500.0,0.00047671,5]
[313092638,1706736701615,-897.14,0.00047671,2]
[313092639,1706736701624,-316.76201598,0.00047671,5]
[313092640,1706736701633,-500.0,0.00047671,5]
[313092641,1706736701643,-827.79,0.00047671,2]
[313092642,1706736701652,-1613.63,0.00047671,7]
[313092643,1706736701662,-500.0,0.00047671,5]
[313092644,1706736701672,-518.83,0.00047671,5]
[313092645,1706736701681,-667.59,0.00047671,5]
[313092646,1706736701691,-851.16,0.00047671,5]
[313092647,1706736701700,-500.0,0.00047671,5]
[313092648,1706736701709,-500.0,0.00047671,5]
[313092649,1706736701719,-632.21,0.00047671,5]
[313092650,1706736701730,-1208.58,0.00047671,5]
[313092651,1706736701739,-279.78,0.00047671,5]
[313092652,1706736701748,-500.0,0.00047671,5]
[313092653,1706736701758,-583.31,0.00047671,5]
[313092654,1706736701767,-245.70419436,0.00047671,5]
[313092655,1706736701776,-1528.21,0.00047671,5]
[313092656,1706736701785,-515.39,0.00047671,5]
[313092657,1706736701794,-680.82,0.00047671,5]
[313092658,1706736701803,-975.64,0.00047671,5]
[313092659,1706736701816,-585.71,0.00047671,2]
[313092660,1706736701826,-573.78,0.00047671,5]
[313092661,1706736701836,-500.0,0.00047671,5]
[313092662,1706736701846,-3275.23,0.00047671,5]
[313092663,1706736701855,-500.0,0.00047671,5]
[313092664,1706736701865,-500.0,0.00047671,5]
[313092665,1706736701876,-173.79,0.00047671,5]
[313092666,1706736701885,-1261.55,0.00047671,5]
[313092667,1706736701895,-1056.79,0.00047671,5]
[313092668,1706736701905,-794.7,0.00047671,5]
[313092669,1706736701915,-5284.67,0.00047671,5]
[313092670,1706736701925,-672.7,0.00047671,5]
[313092671,1706736701936,-1126.15,0.00047671,5]
[313092672,1706736701946,-651.12,0.00047671,5]
[313092673,1706736701955,-507.27,0.00047671,5]
[313092674,1706736701965,-1698.73,0.00047671,5]
[313092675,1706736701976,-608.75,0.00047671,5]
[313092676,1706736701986,-678.92,0.00047671,5]
[313092677,1706736701996,-605.81,0.00047671,5]
[313092678,1706736702006,-1315.53,0.00047671,5]
[313092679,1706736702016,-1687.18,0.00047671,5]
[313092680,1706736702027,-584.9,0.00047671,5]
[313092681,1706736702037,-1511.96,0.00047671,5]
[313092682,1706736702047,-500.0,0.00047671,5]
[313092683,1706736702057,-1466.44,0.00047671,5]
[313092684,1706736702072,-1686.6,0.00047671,5]
[313092685,1706736702081,-1262.64,0.00047671,5]
[313092686,1706736702091,-1759.87,0.00047671,5]
[313092687,1706736702101,-500.0,0.00047671,5]
[313092688,1706736702110,-796.91,0.00047671,5]
[313092689,1706736702118,-500.0,0.00047671,5]
[313092690,1706736702128,-529.4,0.00047671,5]
[313092691,1706736702137,-3011.45,0.00047671,5]
[313092692,1706736702147,-902.1,0.00047671,5]
[313092693,1706736702156,-662.47,0.00047671,5]
[313092694,1706736702165,-500.0,0.00047671,5]
[313092695,1706736702174,-812.18,0.00047671,5]
[313092696,1706736702183,-742.82,0.00047671,5]
[313092697,1706736702192,-928.46,0.00047671,5]
[313092698,1706736702201,-638.32,0.00047671,5]
[313092699,1706736702210,-1136.51,0.00047671,5]
[313092700,1706736702219,-914.58,0.00047671,5]
[313092701,1706736702230,-599.21126285,0.00047671,5]
[313092702,1706736702240,-1957.6,0.00047671,5]
[313092703,1706736702250,-1785.32,0.00047671,5]
[313092704,1706736702259,-729.97,0.00047671,5]
[313092705,1706736702268,-652.82,0.00047671,5]
[313092706,1706736702278,-963.87,0.00047671,5]
[313092707,1706736702287,-587.33,0.00047671,5]
[313092708,1706736702297,-540.51,0.00047671,5]
[313092709,1706736702308,-1505.83,0.00047671,5]
[313092710,1706736702323,-1344.23,0.00047671,5]
[313092711,1706736702333,-715.02,0.00047671,5]
[313092712,1706736702342,-823.24,0.00047671,5]
[313092713,1706736702352,-3815.84,0.00047671,5]
[313092714,1706736702361,-500.0,0.00047671,5]
[313092715,1706736702371,-533.75,0.00047671,5]
[313092716,1706736702381,-601.94,0.00047671,5]
[313092717,1706736702390,-2237.3,0.00047671,5]
[313092718,1706736702399,-789.41,0.00047671,5]
[313092719,1706736702408,-719.21,0.00047671,5]
[313092720,1706736702417,-651.31,0.00047671,5]
[313092721,1706736702427,-1657.29,0.00047671,5]
[313092722,1706736702438,-812.12,0.00047671,5]
[313092723,1706736702447,-1780.38,0.00047671,5]
[313092724,1706736702457,-500.0,0.00047671,5]
[313092725,1706736702467,-500.0,0.00047671,5]
[313092726,1706736702476,-652.83,0.00047671,5]
[313092727,1706736702487,-791.3,0.00047671,5]
[313092728,1706736702497,-849.04,0.00047671,5]
[313092729,1706736702506,-1524.13,0.00047671,5]
[313092730,1706736702516,-2731.97,0.00047671,5]
[313092731,1706736702525,-1537.1,0.00047671,5]
[313092732,1706736702534,-571.63,0.00047671,5]
[313092733,1706736702544,-640.29,0.00047671,5]
[313092734,1706736702553,-500.0,0.00047671,5]
[313092735,1706736702566,-700.08,0.00047671,5]
[313092736,1706736702575,-20006.34,0.00047671,5]
[313092737,1706736702585,-726.47,0.00047671,5]
[313092738,1706736702595,-510.24,0.00047671,5]
[313092739,1706736702603,-948.65,0.00047671,5]
[313092740,1706736702613,-800.64,0.00047671,5]
[313092741,1706736702622,-581.17,0.00047671,5]
[313092742,1706736702633,-500.0,0.00047671,5]
[313092743,1706736702642,-500.0,0.00047671,5]
[313092744,1706736702651,-567.51,0.00047671,5]
[313092745,1706736702660,-1484.95,0.00047671,5]
[313092746,1706736702669,-1619.55,0.00047671,5]
[313092747,1706736702678,-500.0,0.00047671,5]
[313092748,1706736702688,-791.85,0.00047671,5]
[313092749,1706736702697,-604.26,0.00047671,5]
[313092750,1706736702706,-679.29,0.00047671,2]
[313092751,1706736702716,-862.32,0.00047671,5]
[313092752,1706736702724,-3247.43,0.00047671,5]
[313092753,1706736702732,-2628.35,0.00047671,5]
[313092754,1706736702742,-1000.23,0.00047671,5]
[313092755,1706736702751,-500.0,0.00047671,5]
[313092756,1706736702760,-1155.57,0.00047671,5]
[313092757,1706736702770,-678.92,0.00047671,5]
[313092758,1706736702779,-1333.1,0.00047671,5]
[313092759,1706736702789,-1036.02,0.00047671,5]
[313092760,1706736702799,-509.62,0.00047671,5]
[313092761,1706736702808,-333.33333333,0.00047678,30]
[313092762,1706736702820,-222.48064916,0.0004768,120]
[313092763,1706736702830,-150.36800339,0.00047712,30]
[313092764,1706736702838,-3906.33131402,0.00047728,5]
[313092765,1706736702848,-150.0,0.00047797,30]
[313092766,1706736702858,-1000.0,0.000478,15]
[313092767,1706736702867,-986.53,0.000478,20]
[313092768,1706736702877,-400.0,0.000478,60]
[313092769,1706736702886,-505073.50404908,0.000478,45]
[313092770,1706736702896,-992.3,0.000478,13]
[313092771,1706736702905,-175.30167221,0.000478,2]
[313092772,1706736702915,-451.45066495,0.000478,2]
[313092773,1706736702924,-803.92,0.00047808,2]
[313092774,1706736702933,-1867.04,0.00047808,2]
[313092775,1706736702943,-1078.59396166,0.00047846,30]
[313092776,1706736702952,-2002.88,0.0004786,2]
[313092777,1706736702961,-8004.04035342,0.00047888,10]
[313092778,1706736702971,-224.0,0.0004789,120]
[313092779,1706736702980,-515.31378605,0.00047893,30]
[313092780,1706736702988,-4281.92731258,0.000479,2]
[313092781,1706736702998,-166.0896604,0.00047935,30]
[313092782,1706736703007,-666.0,0.00047945,2]
[313092783,1706736703017,-500.0,0.00047945,30]
[313092784,1706736703026,-500.0,0.00047945,14]
[313092785,1706736703036,-1500.65130064,0.00047967,30]
[313092786,1706736703045,-163.23201258,0.00047969,30]
[313092787,1706736703055,-175.00563788,0.00047981,30]
[313092788,1706736703066,-333.33333333,0.00047986,30]
[313092789,1706736703075,-200.0,0.00047987,42]
[313092790,1706736703085,-200.0,0.00047987,37]
[313092791,1706736703094,-50000.0,0.00048,38]
[313092792,1706736703103,-22187.85860418,0.00048,14]
[313092793,1706736703112,-800.0,0.00048,4]
[313092794,1706736703121,-300.0,0.00048,45]
[313092795,1706736703130,-863.64,0.00048,14]
[313092796,1706736703140,-2000.0,0.00048,30]
[313092797,1706736703149,-2000.0,0.00048,30]
[313092798,1706736703158,-354.66328613,0.00048,30]
[313092799,1706736703167,-2350.0,0.00048,120]
[313092800,1706736703175,-516.0,0.00048,115]
[313092801,1706736703184,-1188.65,0.00048,19]
[313092802,1706736703193,-2000.0,0.00048,2]
[313092803,1706736703203,-40069.12462824,0.00048,3]
[313092804,1706736703216,-1514.03874534,0.00048,5]
[313092805,1706736703226,-5000.0,0.00048,30]
[313092806,1706736703291,-1023.09,0.00048,30]
[313092807,1706736703300,-500.0,0.00048,7]
[313092808,1706736703312,-500.0,0.00048,7]
[313092809,1706736703321,-185.0,0.00048,2]
[313092810,1706736703330,-5762.927556,0.00048,52]
[313092811,1706736703340,-150.0,0.00048,19]
[313092812,1706736703349,-156.4652027,0.0004802,37]
[313092813,1706736703358,-869.68,0.000481,20]
[313092814,1706736703367,-182.36099733,0.00048104,30]
[313092815,1706736703378,-515.31378605,0.0004811,30]
[313092816,1706736703387,-352.8,0.00048136,30]
[313092817,1706736703396,-515.31378605,0.00048147,30]
[313092818,1706736703405,-14095.83004771,0.000482,20]
[313092819,1706736703414,-1460.59,0.00048219,5]
[313092820,1706736703424,-553.49,0.00048219,5]
[313092821,1706736703434,-500.0,0.00048219,2]
[313092822,1706736703443,-625.93,0.00048219,5]
[313092823,1706736703452,-270.0,0.00048219,2]
[313092824,1706736703462,-500.0,0.00048219,5]
[313092825,1706736703472,-897.14,0.00048219,2]
[313092826,1706736703482,-500.0,0.00048219,5]
[313092827,1706736703491,-827.79,0.00048219,2]
[313092828,1706736703501,-1613.63,0.00048219,7]
[313092829,1706736703510,-417.87228918,0.00048219,5]
[313092830,1706736703519,-518.83,0.00048219,5]
[313092831,1706736703529,-667.59,0.00048219,5]
[313092832,1706736703538,-851.16,0.00048219,5]
[313092833,1706736703548,-381.69383443,0.00048219,5]
[313092834,1706736703558,-475.26656964,0.00048219,5]
[313092835,1706736703571,-1208.58,0.00048219,5]
[313092836,1706736703580,-500.0,0.00048219,5]
[313092837,1706736703590,-583.31,0.00048219,5]
[313092838,1706736703599,-1528.21,0.00048219,5]
[313092839,1706736703609,-515.39,0.00048219,5]
[313092840,1706736703618,-680.82,0.00048219,5]
[313092841,1706736703627,-975.64,0.00048219,5]
[313092842,1706736703637,-585.71,0.00048219,2]
[313092843,1706736703646,-573.78,0.00048219,5]
[313092844,1706736703655,-500.0,0.00048219,5]
[313092845,1706736703665,-3275.23,0.00048219,5]
[313092846,1706736703674,-500.0,0.00048219,5]
[313092847,1706736703683,-500.0,0.00048219,5]
[313092848,1706736703692,-1261.55,0.00048219,5]
[313092849,1706736703701,-1056.79,0.00048219,5]
[313092850,1706736703710,-794.7,0.00048219,5]
[313092851,1706736703720,-5284.67,0.00048219,5]
[313092852,1706736703730,-672.7,0.00048219,5]
[313092853,1706736703740,-1126.15,0.00048219,5]
[313092854,1706736703749,-651.12,0.00048219,5]
[313092855,1706736703759,-507.27,0.00048219,5]
[313092856,1706736703768,-1698.73,0.00048219,5]
[313092857,1706736703777,-608.75,0.00048219,5]
[313092858,1706736703787,-678.92,0.00048219,5]
[313092859,1706736703796,-605.81,0.00048219,5]
[313092860,1706736703805,-1315.53,0.00048219,5]
[313092861,1706736703818,-1687.18,0.00048219,5]
[313092862,1706736703827,-584.9,0.00048219,5]
[313092863,1706736703835,-1511.96,0.00048219,5]
[313092864,1706736703844,-500.0,0.00048219,5]
[313092865,1706736703854,-1466.44,0.00048219,5]
[313092866,1706736703864,-1686.6,0.00048219,5]
[313092867,1706736703874,-1262.64,0.00048219,5]
[313092868,1706736703883,-1759.87,0.00048219,5]
[313092869,1706736703893,-500.0,0.00048219,5]
[313092870,1706736703902,-796.91,0.00048219,5]
[313092871,1706736703912,-500.0,0.00048219,5]
[313092872,1706736703922,-529.4,0.00048219,5]
[313092873,1706736703931,-3011.45,0.00048219,5]
[313092874,1706736703940,-902.1,0.00048219,5]
[313092875,1706736703950,-662.47,0.00048219,5]
[313092876,1706736703959,-437.50992883,0.00048219,5]
[313092877,1706736703968,-812.18,0.00048219,5]
[313092878,1706736703977,-742.82,0.00048219,5]
[313092879,1706736703987,-928.46,0.00048219,5]
[313092880,1706736703996,-638.32,0.00048219,5]
[313092881,1706736704005,-1136.51,0.00048219,5]
[313092882,1706736704014,-914.58,0.00048219,5]
[313092883,1706736704024,-1957.6,0.00048219,5]
[313092884,1706736704033,-1785.32,0.00048219,5]
[313092885,1706736704043,-729.97,0.00048219,5]
[313092886,1706736704053,-652.82,0.00048219,5]
[313092887,1706736704067,-963.87,0.00048219,5]
[313092888,1706736704078,-587.33,0.00048219,5]
[313092889,1706736704087,-540.51,0.00048219,5]
[313092890,1706736704097,-1505.83,0.00048219,5]
[313092891,1706736704106,-1344.23,0.00048219,5]
[313092892,1706736704115,-715.02,0.00048219,5]
[313092893,1706736704125,-823.24,0.00048219,5]
[313092894,1706736704135,-3815.84,0.00048219,5]
[313092895,1706736704145,-193.01196987,0.00048219,5]
[313092896,1706736704155,-533.75,0.00048219,5]
[313092897,1706736704165,-601.94,0.00048219,5]
[313092898,1706736704175,-2237.3,0.00048219,5]
[313092899,1706736704185,-789.41,0.00048219,5]
[313092900,1706736704194,-719.21,0.00048219,5]
[313092901,1706736704205,-651.31,0.00048219,5]
[313092902,1706736704216,-1657.29,0.00048219,5]
[313092903,1706736704226,-812.12,0.00048219,5]
[313092904,1706736704239,-1780.38,0.00048219,5]
[313092905,1706736704249,-330.29255976,0.00048219,5]
[313092906,1706736704259,-500.0,0.00048219,5]
[313092907,1706736704270,-652.83,0.00048219,5]
[313092908,1706736704280,-791.3,0.00048219,5]
[313092909,1706736704290,-849.04,0.00048219,5]
[313092910,1706736704300,-1524.13,0.00048219,5]
[313092911,1706736704310,-2731.97,0.00048219,5]
[313092912,1706736704331,-1537.1,0.00048219,5]
[313092913,1706736704341,-571.63,0.00048219,5]
[313092914,1706736704351,-640.29,0.00048219,5]
[313092915,1706736704361,-500.0,0.00048219,5]
[313092916,1706736704372,-700.08,0.00048219,5]
[313092917,1706736704382,-20006.34,0.00048219,5]
[313092918,1706736704390,-726.47,0.00048219,5]
[313092919,1706736704400,-510.24,0.00048219,5]
[313092920,1706736704410,-948.65,0.00048219,5]
[313092921,1706736704420,-800.64,0.00048219,5]
[313092922,1706736704429,-581.17,0.00048219,5]
[313092923,1706736704439,-500.0,0.00048219,5]
[313092924,1706736704448,-500.0,0.00048219,5]
[313092925,1706736704458,-567.51,0.00048219,5]
[313092926,1706736704467,-1484.95,0.00048219,5]
[313092927,1706736704477,-1619.55,0.00048219,5]
[313092928,1706736704486,-500.0,0.00048219,5]
[313092929,1706736704496,-791.85,0.00048219,5]
[313092930,1706736704505,-604.26,0.00048219,5]
[313092931,1706736704514,-679.29,0.00048219,2]
[313092932,1706736704524,-862.32,0.00048219,5]
[313092933,1706736704532,-3247.43,0.00048219,5]
[313092934,1706736704543,-2628.35,0.00048219,5]
[313092935,1706736704552,-1000.23,0.00048219,5]
[313092936,1706736704567,-500.0,0.00048219,5]
[313092937,1706736704578,-1155.57,0.00048219,5]
[313092938,1706736704588,-678.92,0.00048219,5]
[313092939,1706736704599,-1333.1,0.00048219,5]
[313092940,1706736704610,-1036.02,0.00048219,5]
[313092941,1706736704620,-509.62,0.00048219,5]
[313092942,1706736704631,-515.31378605,0.00048249,30]
[313092943,1706736704642,-204.0,0.0004827,41]
[313092944,1706736704652,-291.46132644,0.000483,33]
[313092945,1706736704666,-154.03,0.000483,6]
[313092946,1706736704677,-154.03,0.000483,6]
[313092947,1706736704687,-154.03,0.000483,6]
[313092948,1706736704698,-154.03,0.000483,6]
[313092949,1706736704708,-154.03,0.000483,6]
[313092950,1706736704718,-154.03,0.000483,6]
[313092951,1706736704728,-2919.82,0.000483,6]
[313092952,1706736704738,-2919.82,0.000483,6]
[313092953,1706736704748,-2919.82,0.000483,6]
[313092954,1706736704758,-2919.82,0.000483,6]
[313092955,1706736704768,-2919.82,0.000483,6]
[313092956,1706736704778,-2919.82,0.000483,6]
[313092957,1706736704787,-2919.82,0.000483,6]
[313092958,1706736704797,-2919.82,0.000483,6]
[313092959,1706736704806,-2919.82,0.000483,6]
[313092960,1706736704820,-2919.82,0.000483,6]
[313092961,1706736704829,-2919.82,0.000483,6]
[313092962,1706736704839,-2919.82,0.000483,6]
[313092963,1706736704848,-2919.82,0.000483,6]
[313092964,1706736704857,-2919.82,0.000483,6]
[313092965,1706736704867,-2919.82,0.000483,6]
[313092966,1706736704876,-2919.82,0.000483,6]
[313092967,1706736704886,-2919.82,0.000483,6]
[313092968,1706736704896,-2919.82,0.000483,6]
[313092969,1706736704905,-2919.82,0.000483,6]
[313092970,1706736704915,-2919.82,0.000483,6]
[313092971,1706736704924,-987.66,0.000483,18]
[313092972,1706736704934,-327.38793921,0.0004831,30]
[313092973,1706736704944,-673.24225461,0.00048316,30]
[313092974,1706736704953,-25000.0,0.00048316,60]
[313092975,1706736704963,-25000.0,0.00048316,60]
[313092976,1706736704973,-25000.0,0.00048316,60]
[313092977,1706736704982,-25000.0,0.00048316,60]
[313092978,1706736704991,-25000.0,0.00048316,60]
[313092979,1706736705001,-25000.0,0.00048316,60]
[313092980,1706736705011,-25000.0,0.00048316,60]
[313092981,1706736705021,-25000.0,0.00048316,60]
[313092982,1706736705030,-25000.0,0.00048316,60]
[313092983,1706736705041,-25000.0,0.00048316,60]
[313092984,1706736705050,-25000.0,0.00048316,60]
[313092985,1706736705060,-25000.0,0.00048316,60]
[313092986,1706736705075,-25000.0,0.00048316,60]
[313092987,1706736705084,-25000.0,0.00048316,60]
[313092988,1706736705094,-25000.0,0.00048316,60]
[313092989,1706736705104,-25000.0,0.00048316,60]
[313092990,1706736705113,-25000.0,0.00048316,60]
[313092991,1706736705123,-25000.0,0.00048316,60]
[313092992,1706736705132,-25000.0,0.00048316,60]
[313092993,1706736705142,-25000.0,0.00048316,60]
[313092994,1706736705152,-25000.0,0.00048316,60]
[313092995,1706736705161,-25000.0,0.00048316,60]
[313092996,1706736705172,-25000.0,0.00048316,60]
[313092997,1706736705182,-25000.0,0.00048316,60]
[313092998,1706736705192,-25000.0,0.00048316,60]
[313092999,1706736705202,-25000.0,0.00048316,60]
[313093000,1706736705214,-25000.0,0.00048316,60]
[313093001,1706736705224,-25000.0,0.00048316,60]
[313093002,1706736705233,-25000.0,0.00048316,60]
[313093003,1706736705242,-25000.0,0.00048316,60]
[313093004,1706736705253,-25000.0,0.00048316,60]
[313093005,1706736705262,-25000.0,0.00048316,60]
[313093006,1706736705272,-25000.0,0.00048316,60]
[313093007,1706736705281,-25000.0,0.00048316,60]
[313093008,1706736705290,-25000.0,0.00048316,60]
[313093009,1706736705300,-25000.0,0.00048316,60]
[313093010,1706736705309,-25000.0,0.00048316,60]
[313093011,1706736705324,-25000.0,0.00048316,60]
[313093012,1706736705332,-25000.0,0.00048316,60]
[313093013,1706736705341,-25000.0,0.00048316,60]
[313093014,1706736705350,-25000.0,0.00048316,60]
[313093015,1706736705360,-25000.0,0.00048316,60]
[313093016,1706736705370,-25000.0,0.00048316,60]
[313093017,1706736705379,-25000.0,0.00048316,60]
[313093018,1706736705388,-25000.0,0.00048316,60]
[313093019,1706736705398,-25000.0,0.00048316,60]
[313093020,1706736705407,-25000.0,0.00048316,60]
[313093021,1706736705416,-25000.0,0.00048316,60]
[313093022,1706736705425,-9621.71842561,0.00048316,60]
[313093023,1706736705435,-104320.07906947,0.00048316,30]
[313093024,1706736705444,-3440.7338392,0.00048316,36]
[313093025,1706736705453,-1500.65130064,0.00048373,30]
[313093026,1706736705463,-996.13,0.0004838,16]
[313093027,1706736705472,-1500.65130064,0.00048386,30]
[313093028,1706736705483,-5688.0,0.0004849,2]
[313093029,1706736705494,-5725.0,0.0004849,2]
[313093030,1706736705504,-500.0,0.00048493,30]
[313093031,1706736705513,-500.0,0.00048493,30]
[313093032,1706736705523,-549.61253182,0.00048493,30]
[313093033,1706736705532,-300.0,0.000485,46]
[313093034,1706736705542,-150.0,0.000485,2]
[313093035,1706736705551,-255.0,0.000485,2]
[313093036,1706736705561,-11941.26603079,0.000485,60]
[313093037,1706736705576,-206526.60360137,0.000485,2]
[313093038,1706736705586,-152.61839701,0.00048528,30]
[313093039,1706736705596,-313.92,0.0004856,2]
[313093040,1706736705606,-150.36800339,0.00048577,30]
[313093041,1706736705616,-150.0,0.00048581,30]
[313093042,1706736705626,-1035.8983042,0.00048635,30]
[313093043,1706736705635,-150.0,0.00048666,2]
[313093044,1706736705645,-500.0,0.00048683,14]
[313093045,1706736705655,-400.0,0.000487,60]
[313093046,1706736705664,-11763.59064365,0.000487,21]
[313093047,1706736705673,-21770.19126701,0.000487,2]
[313093048,1706736705682,-218.46457265,0.000487,2]
[313093049,1706736705692,-1751.0,0.000487,117]
[313093050,1706736705701,-951.0,0.000487,30]
[313093051,1706736705712,-515.31378605,0.00048733,30]
[313093052,1706736705721,-1035.8983042,0.0004875,30]
[313093053,1706736705731,-1035.8983042,0.00048756,30]
[313093054,1706736705741,-1460.59,0.00048767,5]
[313093055,1706736705751,-553.49,0.00048767,5]
[313093056,1706736705761,-500.0,0.00048767,2]
[313093057,1706736705771,-625.93,0.00048767,5]
[313093058,1706736705780,-485.64559718,0.00048767,5]
[313093059,1706736705791,-897.14,0.00048767,2]
[313093060,1706736705800,-500.0,0.00048767,5]
[313093061,1706736705810,-827.79,0.00048767,2]